[Event "Kvibergspelen September 2019"]
[Site "Prioritet Serneke Arena, Krutvagen 2, Gothenburg, Sweden"]
[Date "2019.09.27"]
[Round "2.1"]
[White "Svensson, Mikael"]
[Black "Hillarp Persson, Tiger"]
[Result "0-1"]
[TimeControl "15 minutes + 5 seconds per move from move one (Round 1 - 4) / 90 minutes + 30 seconds per move from move one (Round 5 - 8)"]
[BlackTitle "GM"]
[WhiteFideId "1716433"]
[BlackFideId "1700812"]
[WhiteElo "2163"]
[BlackElo "2558"]

1. d4 {[%clk 00:15:08]} {[%emt 00:00:01]} g6 {[%clk 00:15:09]} {[%emt
00:00:02]} 2. Nf3 {[%clk 00:15:09]} {[%emt 00:00:04]} Bg7 {[%clk 00:15:12]} 3.
Nbd2 {[%clk 00:15:12]} {[%emt 00:00:02]} d6 {[%clk 00:15:12]} {[%emt 00:00:06]}
4. e4 {[%clk 00:15:13]} {[%emt 00:00:05]} Nd7 {[%clk 00:15:14]} {[%emt
00:00:03]} 5. c3 {[%clk 00:15:15]} {[%emt 00:00:03]} e5 {[%clk 00:15:16]}
{[%emt 00:00:02]} 6. Be2 {[%clk 00:15:05]} {[%emt 00:00:16]} Ngf6 {[%clk
00:15:11]} {[%emt 00:00:10]} 7. O-O {[%clk 00:15:03]} {[%emt 00:00:06]} O-O
{[%clk 00:15:15]} {[%emt 00:00:02]} 8. Re1 {[%clk 00:15:04]} {[%emt 00:00:04]}
b6 {[%clk 00:15:15]} {[%emt 00:00:05]} 9. Bf1 {[%clk 00:14:56]} {[%emt
00:00:13]} Bb7 {[%clk 00:15:17]} {[%emt 00:00:02]} 10. Qc2 {[%clk 00:14:53]}
{[%emt 00:00:09]} Re8 {[%clk 00:15:15]} {[%emt 00:00:07]} 11. a4 {[%clk
00:14:33]} {[%emt 00:00:25]} d5 {[%clk 00:14:40]} {[%emt 00:00:39]} 12. exd5
{[%clk 00:14:14]} {[%emt 00:00:24]} exd4 {[%clk 00:14:23]} {[%emt 00:00:22]} 13.
Rxe8+ {[%clk 00:13:06]} {[%emt 00:01:15]} Qxe8 {[%clk 00:14:26]} {[%emt
00:00:01]} 14. Nxd4 {[%clk 00:12:51]} {[%emt 00:00:20]} Nxd5 {[%clk 00:14:28]}
{[%emt 00:00:02]} 15. N2f3 {[%clk 00:12:29]} {[%emt 00:00:27]} a6 {[%clk
00:13:39]} {[%emt 00:00:54]} 16. Bd2 {[%clk 00:11:49]} {[%emt 00:00:45]} c5
{[%clk 00:11:51]} {[%emt 00:01:53]} 17. Re1 {[%clk 00:11:45]} {[%emt 00:00:09]}
Qc8 {[%clk 00:11:20]} {[%emt 00:00:36]} 18. Ne2 {[%clk 00:10:43]} {[%emt
00:01:07]} Qc7 {[%clk 00:11:09]} {[%emt 00:00:16]} 19. Qc1 {[%clk 00:08:55]}
{[%emt 00:01:52]} Re8 {[%clk 00:11:03]} {[%emt 00:00:11]} 20. Ng3 {[%clk
00:08:25]} {[%emt 00:00:37]} Rxe1 {[%clk 00:09:53]} {[%emt 00:01:15]} 21. Qxe1
{[%clk 00:08:26]} {[%emt 00:00:04]} Nf8 {[%clk 00:09:55]} {[%emt 00:00:02]} 22.
Bc4 {[%clk 00:06:58]} {[%emt 00:01:33]} Qc6 {[%clk 00:09:39]} {[%emt 00:00:21]}
23. Qf1 {[%clk 00:06:31]} {[%emt 00:00:32]} Qxa4 {[%clk 00:09:26]} {[%emt
00:00:19]} 24. Qd3 {[%clk 00:04:44]} {[%emt 00:01:52]} Nc7 {[%clk 00:07:38]}
{[%emt 00:01:53]} 25. Ng5 {[%clk 00:03:42]} {[%emt 00:01:07]} Nce6 {[%clk
00:07:41]} {[%emt 00:00:03]} 26. h3 {[%clk 00:02:21]} {[%emt 00:01:25]} Nxg5
{[%clk 00:07:09]} {[%emt 00:00:37]} 27. Bxg5 {[%clk 00:02:24]} {[%emt
00:00:02]} Qc6 {[%clk 00:07:11]} {[%emt 00:00:04]} 28. f3 {[%clk 00:02:04]}
{[%emt 00:00:25]} b5 {[%clk 00:07:14]} {[%emt 00:00:02]} 29. Ba2 {[%clk
00:01:58]} {[%emt 00:00:11]} c4 {[%clk 00:07:16]} {[%emt 00:00:02]} 30. Qd8
{[%clk 00:01:30]} {[%emt 00:00:33]} Qd5 {[%clk 00:07:19]} {[%emt 00:00:03]} 31.
Ne4 {[%clk 00:01:06]} {[%emt 00:00:29]} Qxd8 {[%clk 00:07:13]} {[%emt
00:00:10]} 32. Bxd8 {[%clk 00:01:09]} {[%emt 00:00:02]} Bxe4 {[%clk 00:06:46]}
{[%emt 00:00:32]} 33. fxe4 {[%clk 00:01:12]} Ne6 {[%clk 00:06:50]} {[%emt
00:00:02]} 34. Bb6 {[%clk 00:01:10]} {[%emt 00:00:08]} Bf8 {[%clk 00:06:48]}
{[%emt 00:00:07]} 35. Kf2 {[%clk 00:00:34]} {[%emt 00:00:41]} Bc5+ {[%clk
00:06:46]} {[%emt 00:00:07]} 36. Bxc5 Nxc5 {[%clk 00:06:50]} 37. Ke3 {[%clk
00:00:38]} {[%emt 00:00:05]} Na4 {[%clk 00:06:53]} {[%emt 00:00:02]} 38. Kd4
{[%clk 00:00:28]} {[%emt 00:00:14]} Nxb2 {[%clk 00:06:57]} {[%emt 00:00:01]} 39.
Bb1 {[%clk 00:00:15]} {[%emt 00:00:19]} Kf8 {[%clk 00:06:17]} {[%emt 00:00:45]}
40. Kc5 {[%clk 00:00:18]} {[%emt 00:00:02]} Nd1 {[%clk 00:06:12]} {[%emt
00:00:10]} 41. Kb6 {[%clk 00:00:15]} {[%emt 00:00:08]} Nxc3 {[%clk 00:06:14]}
{[%emt 00:00:03]} 42. Bc2 {[%clk 00:00:19]} b4 {[%clk 00:06:17]} {[%emt
00:00:02]} 0-1

[Event "Kvibergspelen September 2019"]
[Site "Prioritet Serneke Arena, Krutvagen 2, Gothenburg, Sweden"]
[Date "2019.09.27"]
[Round "2.2"]
[White "Blomqvist, Erik"]
[Black "Rishovd, Svein"]
[Result "1-0"]
[TimeControl "15 minutes + 5 seconds per move from move one (Round 1 - 4) / 90 minutes + 30 seconds per move from move one (Round 5 - 8)"]
[WhiteTitle "GM"]
[BlackTitle "CM"]
[WhiteFideId "1709437"]
[BlackFideId "1513060"]
[WhiteElo "2519"]
[BlackElo "2158"]

1. e4 {[%clk 00:15:08]} {[%emt 00:00:02]} c5 {[%clk 00:14:44]} {[%emt
00:00:27]} 2. Nf3 {[%clk 00:15:10]} {[%emt 00:00:03]} e6 {[%clk 00:14:48]}
{[%emt 00:00:01]} 3. c3 {[%clk 00:15:13]} {[%emt 00:00:02]} d5 {[%clk
00:14:35]} {[%emt 00:00:17]} 4. exd5 {[%clk 00:15:16]} {[%emt 00:00:03]} Qxd5
{[%clk 00:14:37]} {[%emt 00:00:03]} 5. d4 {[%clk 00:15:18]} {[%emt 00:00:03]}
Nf6 {[%clk 00:14:39]} {[%emt 00:00:03]} 6. Na3 {[%clk 00:15:07]} {[%emt
00:00:17]} Nc6 {[%clk 00:14:32]} {[%emt 00:00:11]} 7. Be3 {[%clk 00:14:58]}
{[%emt 00:00:14]} cxd4 {[%clk 00:13:45]} {[%emt 00:00:53]} 8. Nb5 {[%clk
00:15:01]} {[%emt 00:00:02]} Qd8 {[%clk 00:13:35]} {[%emt 00:00:14]} 9. Nbxd4
{[%clk 00:14:56]} {[%emt 00:00:10]} Be7 {[%clk 00:13:05]} {[%emt 00:00:34]} 10.
Nxc6 {[%clk 00:14:38]} {[%emt 00:00:23]} Qxd1+ {[%clk 00:12:28]} {[%emt
00:00:41]} 11. Rxd1 {[%clk 00:14:24]} {[%emt 00:00:20]} bxc6 {[%clk 00:12:32]}
{[%emt 00:00:02]} 12. Ne5 {[%clk 00:13:58]} {[%emt 00:00:31]} Bb7 {[%clk
00:12:11]} {[%emt 00:00:26]} 13. Nc4 {[%clk 00:13:34]} {[%emt 00:00:29]} Nd5
{[%clk 00:10:23]} {[%emt 00:01:53]} 14. Bd4 {[%clk 00:13:37]} {[%emt 00:00:01]}
c5 {[%clk 00:09:22]} {[%emt 00:01:07]} 15. Bxg7 {[%clk 00:13:23]} {[%emt
00:00:19]} Rg8 {[%clk 00:09:26]} 16. Be5 {[%clk 00:13:26]} {[%emt 00:00:02]}
O-O-O {[%clk 00:08:51]} {[%emt 00:00:41]} 17. Na5 {[%clk 00:13:13]} {[%emt
00:00:18]} f6 {[%clk 00:08:46]} {[%emt 00:00:10]} 18. Bg3 {[%clk 00:13:02]}
{[%emt 00:00:16]} f5 {[%clk 00:07:42]} {[%emt 00:01:09]} 19. Be5 {[%clk
00:12:26]} {[%emt 00:00:40]} Nf6 {[%clk 00:07:04]} {[%emt 00:00:43]} 20. Rxd8+
{[%clk 00:12:08]} {[%emt 00:00:24]} Rxd8 {[%clk 00:06:29]} {[%emt 00:00:40]} 21.
Nxb7 {[%clk 00:12:11]} {[%emt 00:00:02]} Kxb7 {[%clk 00:06:32]} {[%emt
00:00:01]} 22. Bc4 {[%clk 00:11:58]} {[%emt 00:00:17]} Ng4 {[%clk 00:06:23]}
{[%emt 00:00:14]} 23. Bf4 {[%clk 00:11:31]} {[%emt 00:00:32]} e5 {[%clk
00:06:10]} {[%emt 00:00:20]} 24. Bc1 {[%clk 00:11:33]} {[%emt 00:00:02]} Rd6
{[%clk 00:03:00]} {[%emt 00:03:14]} 25. Ke2 {[%clk 00:11:11]} {[%emt 00:00:29]}
Kc6 {[%clk 00:02:41]} {[%emt 00:00:23]} 26. h3 {[%clk 00:10:30]} {[%emt
00:00:46]} Nf6 {[%clk 00:02:44]} {[%emt 00:00:02]} 27. g4 {[%clk 00:10:26]}
{[%emt 00:00:09]} f4 {[%clk 00:01:42]} {[%emt 00:01:07]} 28. Kf3 {[%clk
00:10:09]} {[%emt 00:00:22]} h6 {[%clk 00:01:35]} {[%emt 00:00:12]} 29. Re1
{[%clk 00:10:07]} {[%emt 00:00:07]} Nd7 {[%clk 00:01:35]} {[%emt 00:00:05]} 30.
a4 {[%clk 00:08:03]} {[%emt 00:02:09]} Bf6 {[%clk 00:01:17]} {[%emt 00:00:23]}
31. Ke4 {[%clk 00:07:05]} {[%emt 00:01:03]} Nb6 {[%clk 00:01:11]} {[%emt
00:00:11]} 32. Bb5+ {[%clk 00:06:59]} {[%emt 00:00:11]} Kb7 {[%clk 00:01:13]}
{[%emt 00:00:03]} 33. a5 {[%clk 00:06:51]} {[%emt 00:00:13]} Nd5 {[%clk
00:01:01]} {[%emt 00:00:17]} 34. Re2 {[%clk 00:06:13]} {[%emt 00:00:43]} Nc7
{[%clk 00:00:56]} {[%emt 00:00:10]} 35. Ba4 {[%clk 00:05:47]} {[%emt 00:00:31]}
Ka6 {[%clk 00:00:43]} {[%emt 00:00:18]} 36. Rd2 {[%clk 00:05:09]} {[%emt
00:00:43]} Rxd2 {[%clk 00:00:30]} {[%emt 00:00:18]} 37. Bxd2 {[%clk 00:05:13]}
Kxa5 {[%clk 00:00:34]} {[%emt 00:00:01]} 38. Bd7 {[%clk 00:04:38]} {[%emt
00:00:39]} Kb6 {[%clk 00:00:21]} {[%emt 00:00:19]} 39. Kf5 {[%clk 00:04:04]}
{[%emt 00:00:39]} Bg7 {[%clk 00:00:23]} {[%emt 00:00:03]} 40. c4 {[%clk
00:02:47]} {[%emt 00:01:22]} Na6 {[%clk 00:00:28]} 41. Bc3 {[%clk 00:02:34]}
{[%emt 00:00:17]} Nb4 {[%clk 00:00:16]} {[%emt 00:00:17]} 42. Kg6 {[%clk
00:02:14]} {[%emt 00:00:25]} Bf8 {[%clk 00:00:13]} {[%emt 00:00:08]} 43. Bxe5
{[%clk 00:01:18]} {[%emt 00:01:01]} Nd3 {[%clk 00:00:17]} {[%emt 00:00:01]} 44.
Kf5 {[%clk 00:00:33]} {[%emt 00:00:50]} Nxf2 {[%clk 00:00:18]} {[%emt
00:00:04]} 45. Bxf4 {[%clk 00:00:23]} {[%emt 00:00:15]} Nxh3 {[%clk 00:00:15]}
{[%emt 00:00:07]} 46. Be3 {[%clk 00:00:25]} {[%emt 00:00:04]} Kc7 {[%clk
00:00:12]} {[%emt 00:00:08]} 47. Be6 {[%clk 00:00:13]} {[%emt 00:00:17]} Ng5
{[%clk 00:00:16]} {[%emt 00:00:01]} 48. Bd5 {[%clk 00:00:18]} Kd6 {[%clk
00:00:19]} {[%emt 00:00:02]} 49. Kg6 {[%clk 00:00:09]} {[%emt 00:00:13]} Ne6
{[%clk 00:00:17]} {[%emt 00:00:07]} 50. Bxe6 {[%clk 00:00:07]} {[%emt
00:00:07]} Kxe6 {[%clk 00:00:21]} {[%emt 00:00:01]} 51. Bxh6 {[%clk 00:00:11]}
{[%emt 00:00:02]} Be7 {[%clk 00:00:22]} {[%emt 00:00:02]} 52. Bd2 {[%clk
00:00:13]} {[%emt 00:00:03]} Bf6 {[%clk 00:00:26]} {[%emt 00:00:02]} 53. b3
{[%clk 00:00:16]} {[%emt 00:00:02]} Bd4 {[%clk 00:00:29]} {[%emt 00:00:02]} 54.
Bf4 {[%clk 00:00:13]} {[%emt 00:00:07]} a6 {[%clk 00:00:33]} {[%emt 00:00:02]}
55. Bc7 {[%clk 00:00:17]} {[%emt 00:00:01]} Ke7 {[%clk 00:00:37]} {[%emt
00:00:02]} 56. Kf5 {[%clk 00:00:20]} {[%emt 00:00:01]} Kf7 {[%clk 00:00:41]} 57.
g5 {[%clk 00:00:23]} {[%emt 00:00:02]} Kg7 {[%clk 00:00:43]} {[%emt 00:00:03]}
58. Be5+ {[%clk 00:00:27]} Bxe5 {[%clk 00:00:47]} 59. Kxe5 {[%clk 00:00:31]}
{[%emt 00:00:01]} Kg6 {[%clk 00:00:51]} {[%emt 00:00:01]} 60. Kd5 {[%clk
00:00:35]} 1-0

[Event "Kvibergspelen September 2019"]
[Site "Prioritet Serneke Arena, Krutvagen 2, Gothenburg, Sweden"]
[Date "2019.09.27"]
[Round "2.3"]
[White "Ask, Josef"]
[Black "Schandorff, Lars"]
[Result "0-1"]
[TimeControl "15 minutes + 5 seconds per move from move one (Round 1 - 4) / 90 minutes + 30 seconds per move from move one (Round 5 - 8)"]
[WhiteTitle "FM"]
[BlackTitle "GM"]
[WhiteFideId "1704583"]
[BlackFideId "1400070"]
[WhiteElo "2160"]
[BlackElo "2496"]

1. e4 {[%clk 00:15:08]} c6 {[%clk 00:15:08]} {[%emt 00:00:03]} 2. d3 {[%clk
00:15:06]} {[%emt 00:00:07]} d5 {[%clk 00:15:11]} {[%emt 00:00:02]} 3. Nd2
{[%clk 00:15:07]} {[%emt 00:00:04]} e5 {[%clk 00:15:15]} {[%emt 00:00:03]} 4.
Ngf3 {[%clk 00:15:03]} {[%emt 00:00:08]} Bd6 {[%clk 00:15:17]} {[%emt
00:00:02]} 5. g3 {[%clk 00:14:51]} {[%emt 00:00:17]} Nf6 {[%clk 00:15:20]}
{[%emt 00:00:03]} 6. Bg2 {[%clk 00:14:51]} {[%emt 00:00:04]} O-O {[%clk
00:15:22]} {[%emt 00:00:03]} 7. O-O {[%clk 00:14:52]} {[%emt 00:00:04]} Re8
{[%clk 00:15:15]} {[%emt 00:00:12]} 8. b3 {[%clk 00:14:44]} {[%emt 00:00:12]}
a5 {[%clk 00:14:55]} {[%emt 00:00:26]} 9. a3 {[%clk 00:14:34]} {[%emt
00:00:15]} Na6 {[%clk 00:12:32]} {[%emt 00:02:28]} 10. Bb2 {[%clk 00:14:21]}
{[%emt 00:00:18]} dxe4 {[%clk 00:12:06]} {[%emt 00:00:31]} 11. dxe4 {[%clk
00:14:18]} {[%emt 00:00:08]} b5 {[%clk 00:12:08]} {[%emt 00:00:03]} 12. Re1
{[%clk 00:13:55]} {[%emt 00:00:28]} Nc5 {[%clk 00:10:51]} {[%emt 00:01:23]} 13.
h3 {[%clk 00:13:21]} {[%emt 00:00:38]} Qc7 {[%clk 00:10:45]} {[%emt 00:00:12]}
14. Nh4 {[%clk 00:12:56]} {[%emt 00:00:30]} g6 {[%clk 00:08:52]} {[%emt
00:01:58]} 15. Nf1 {[%clk 00:12:30]} {[%emt 00:00:30]} Ne6 {[%clk 00:07:17]}
{[%emt 00:01:41]} 16. Kh2 {[%clk 00:10:25]} {[%emt 00:02:09]} Bc5 {[%clk
00:07:09]} {[%emt 00:00:14]} 17. Ne3 {[%clk 00:10:03]} {[%emt 00:00:27]} Ng5
{[%clk 00:05:50]} {[%emt 00:01:24]} 18. f3 {[%clk 00:09:43]} {[%emt 00:00:25]}
Ne6 {[%clk 00:05:24]} {[%emt 00:00:32]} 19. c3 {[%clk 00:08:56]} {[%emt
00:00:51]} Bb7 {[%clk 00:05:13]} {[%emt 00:00:15]} 20. Qe2 {[%clk 00:08:29]}
{[%emt 00:00:32]} Rad8 {[%clk 00:05:15]} {[%emt 00:00:04]} 21. b4 {[%clk
00:08:05]} {[%emt 00:00:28]} Bf8 {[%clk 00:05:01]} {[%emt 00:00:19]} 22. Rad1
{[%clk 00:07:48]} {[%emt 00:00:22]} axb4 {[%clk 00:05:02]} {[%emt 00:00:04]} 23.
axb4 {[%clk 00:07:50]} {[%emt 00:00:04]} Rxd1 {[%clk 00:05:01]} {[%emt
00:00:06]} 24. Rxd1 {[%clk 00:07:48]} {[%emt 00:00:06]} Rd8 {[%clk 00:05:06]}
25. Bc1 {[%clk 00:07:18]} {[%emt 00:00:35]} Be7 {[%clk 00:04:40]} {[%emt
00:00:30]} 26. Bf1 {[%clk 00:06:52]} {[%emt 00:00:31]} Nd7 {[%clk 00:04:22]}
{[%emt 00:00:24]} 27. Nhg2 {[%clk 00:06:33]} {[%emt 00:00:24]} Nb6 {[%clk
00:04:26]} {[%emt 00:00:01]} 28. Rxd8+ {[%clk 00:06:02]} {[%emt 00:00:36]} Qxd8
{[%clk 00:04:30]} {[%emt 00:00:01]} 29. Qa2 {[%clk 00:05:53]} {[%emt 00:00:14]}
Na4 {[%clk 00:03:50]} {[%emt 00:00:45]} 30. Qb3 {[%clk 00:05:50]} {[%emt
00:00:08]} h5 {[%clk 00:03:36]} {[%emt 00:00:19]} 31. h4 {[%clk 00:05:26]}
{[%emt 00:00:28]} Qd6 {[%clk 00:03:31]} {[%emt 00:00:10]} 32. Be2 {[%clk
00:05:13]} {[%emt 00:00:18]} Bd8 {[%clk 00:03:29]} {[%emt 00:00:07]} 33. Ne1
{[%clk 00:04:54]} {[%emt 00:00:24]} Bb6 {[%clk 00:03:31]} {[%emt 00:00:03]} 34.
N1g2 {[%clk 00:04:15]} {[%emt 00:00:44]} Bc8 {[%clk 00:03:33]} {[%emt
00:00:04]} 35. Nc2 {[%clk 00:04:03]} {[%emt 00:00:17]} Qd7 {[%clk 00:03:29]}
{[%emt 00:00:09]} 36. g4 {[%clk 00:03:31]} {[%emt 00:00:37]} hxg4 {[%clk
00:03:07]} {[%emt 00:00:27]} 37. fxg4 {[%clk 00:03:34]} Qd6 {[%clk 00:03:00]}
{[%emt 00:00:13]} 38. g5 {[%clk 00:02:58]} {[%emt 00:00:41]} Nf4 {[%clk
00:03:02]} {[%emt 00:00:03]} 39. Bf1 {[%clk 00:01:57]} {[%emt 00:01:06]} Qd1
{[%clk 00:02:57]} {[%emt 00:00:10]} 40. Bxf4 {[%clk 00:00:27]} {[%emt
00:01:35]} exf4 {[%clk 00:03:00]} {[%emt 00:00:02]} 41. Nge1 {[%clk 00:00:23]}
{[%emt 00:00:09]} Qg4 {[%clk 00:02:33]} {[%emt 00:00:32]} 42. Ng2 {[%clk
00:00:23]} {[%emt 00:00:05]} Qh3# {[%clk 00:02:28]} 0-1

[Event "Kvibergspelen September 2019"]
[Site "Prioritet Serneke Arena, Krutvagen 2, Gothenburg, Sweden"]
[Date "2019.09.27"]
[Round "2.4"]
[White "Cramling, Pia"]
[Black "Ronneland, Daniel"]
[Result "1/2-1/2"]
[TimeControl "15 minutes + 5 seconds per move from move one (Round 1 - 4) / 90 minutes + 30 seconds per move from move one (Round 5 - 8)"]
[WhiteTitle "GM"]
[WhiteFideId "1700030"]
[BlackFideId "1702130"]
[WhiteElo "2487"]
[BlackElo "2137"]

1. Nf3 {[%clk 00:15:09]} {[%emt 00:08:03]} Nf6 {[%clk 00:15:04]} {[%emt
00:00:07]} 2. c4 {[%clk 00:15:13]} e6 {[%clk 00:14:44]} {[%emt 00:00:26]} 3. g3
{[%clk 00:15:13]} {[%emt 00:00:04]} d5 {[%clk 00:14:40]} {[%emt 00:00:09]} 4.
Bg2 {[%clk 00:15:14]} {[%emt 00:00:04]} c6 {[%clk 00:14:37]} {[%emt 00:00:08]}
5. Qc2 {[%clk 00:15:08]} {[%emt 00:00:11]} Be7 {[%clk 00:14:36]} {[%emt
00:00:06]} 6. d4 {[%clk 00:15:07]} {[%emt 00:00:06]} O-O {[%clk 00:14:34]}
{[%emt 00:00:07]} 7. O-O {[%clk 00:15:10]} {[%emt 00:00:02]} Nbd7 {[%clk
00:14:11]} {[%emt 00:00:28]} 8. Rd1 {[%clk 00:15:14]} Ne4 {[%clk 00:13:46]}
{[%emt 00:00:30]} 9. Nc3 {[%clk 00:14:40]} {[%emt 00:00:40]} f5 {[%clk
00:13:39]} {[%emt 00:00:12]} 10. Rb1 {[%clk 00:14:37]} {[%emt 00:00:07]} a5
{[%clk 00:12:46]} {[%emt 00:00:58]} 11. Ne5 {[%clk 00:14:16]} {[%emt 00:00:27]}
Nxe5 {[%clk 00:12:17]} {[%emt 00:00:34]} 12. dxe5 {[%clk 00:14:18]} {[%emt
00:00:03]} Qc7 {[%clk 00:10:23]} {[%emt 00:02:00]} 13. Nxe4 {[%clk 00:11:58]}
{[%emt 00:02:25]} dxe4 {[%clk 00:09:24]} {[%emt 00:01:04]} 14. Qc3 {[%clk
00:11:12]} {[%emt 00:00:51]} a4 {[%clk 00:09:24]} {[%emt 00:00:05]} 15. c5
{[%clk 00:11:04]} {[%emt 00:00:13]} b6 {[%clk 00:08:29]} {[%emt 00:01:01]} 16.
Be3 {[%clk 00:09:30]} {[%emt 00:01:39]} bxc5 {[%clk 00:08:23]} {[%emt
00:00:12]} 17. Bxc5 {[%clk 00:09:26]} {[%emt 00:00:09]} Bxc5 {[%clk 00:08:20]}
{[%emt 00:00:08]} 18. Qxc5 {[%clk 00:09:30]} {[%emt 00:00:01]} Ra5 {[%clk
00:08:22]} {[%emt 00:00:02]} 19. Qd6 {[%clk 00:09:33]} {[%emt 00:00:02]} Qxd6
{[%clk 00:08:09]} {[%emt 00:00:18]} 20. exd6 {[%clk 00:09:22]} {[%emt
00:00:17]} Ba6 {[%clk 00:07:42]} {[%emt 00:00:32]} 21. d7 {[%clk 00:07:13]}
{[%emt 00:02:14]} Rd5 {[%clk 00:06:51]} {[%emt 00:00:56]} 22. Rbc1 {[%clk
00:07:11]} {[%emt 00:00:07]} Rd8 {[%clk 00:05:47]} {[%emt 00:01:08]} 23. Rxd5
{[%clk 00:06:46]} {[%emt 00:00:31]} cxd5 {[%clk 00:05:44]} {[%emt 00:00:07]} 24.
Rc6 {[%clk 00:06:48]} {[%emt 00:00:03]} Bb7 {[%clk 00:05:17]} {[%emt 00:00:33]}
25. Rc7 {[%clk 00:06:34]} {[%emt 00:00:20]} Ba6 {[%clk 00:05:20]} {[%emt
00:00:02]} 26. Rc6 {[%clk 00:04:47]} {[%emt 00:01:52]} Bb7 {[%clk 00:05:23]}
{[%emt 00:00:02]} 27. Rc7 {[%clk 00:04:41]} {[%emt 00:00:10]} 1/2-1/2

[Event "Kvibergspelen September 2019"]
[Site "Prioritet Serneke Arena, Krutvagen 2, Gothenburg, Sweden"]
[Date "2019.09.27"]
[Round "2.6"]
[White "Hector, Jonny"]
[Black "Borvander, Tom"]
[Result "1-0"]
[TimeControl "15 minutes + 5 seconds per move from move one (Round 1 - 4) / 90 minutes + 30 seconds per move from move one (Round 5 - 8)"]
[WhiteTitle "GM"]
[WhiteFideId "1700090"]
[BlackFideId "1707388"]
[WhiteElo "2477"]
[BlackElo "2096"]

1. e4 {[%clk 00:15:06]} {[%emt 00:00:03]} e5 {[%clk 00:15:10]} {[%emt
00:00:01]} 2. Nf3 {[%clk 00:15:09]} {[%emt 00:00:02]} Nc6 {[%clk 00:15:14]}
{[%emt 00:00:02]} 3. Bc4 {[%clk 00:15:12]} {[%emt 00:00:01]} Nf6 {[%clk
00:15:17]} {[%emt 00:00:02]} 4. d3 {[%clk 00:15:04]} {[%emt 00:00:12]} Bc5
{[%clk 00:15:17]} {[%emt 00:00:06]} 5. O-O {[%clk 00:15:04]} {[%emt 00:00:05]}
d6 {[%clk 00:15:04]} {[%emt 00:00:19]} 6. c3 {[%clk 00:15:05]} {[%emt
00:00:03]} a6 {[%clk 00:15:00]} {[%emt 00:00:09]} 7. Bb3 {[%clk 00:14:57]}
{[%emt 00:00:13]} Ba7 {[%clk 00:14:37]} {[%emt 00:00:29]} 8. Be3 {[%clk
00:14:58]} {[%emt 00:00:03]} O-O {[%clk 00:14:37]} {[%emt 00:00:06]} 9. Nbd2
{[%clk 00:15:00]} {[%emt 00:00:02]} h6 {[%clk 00:13:57]} {[%emt 00:00:46]} 10.
Bxa7 {[%clk 00:14:31]} {[%emt 00:00:33]} Rxa7 {[%clk 00:14:01]} {[%emt
00:00:02]} 11. Re1 {[%clk 00:14:31]} {[%emt 00:00:04]} Be6 {[%clk 00:13:43]}
{[%emt 00:00:23]} 12. Bxe6 {[%clk 00:14:23]} {[%emt 00:00:12]} fxe6 {[%clk
00:13:46]} {[%emt 00:00:01]} 13. d4 {[%clk 00:14:21]} {[%emt 00:00:07]} Nd7
{[%clk 00:12:58]} {[%emt 00:00:54]} 14. Nc4 {[%clk 00:13:53]} {[%emt 00:00:33]}
exd4 {[%clk 00:12:07]} {[%emt 00:00:56]} 15. cxd4 {[%clk 00:13:36]} {[%emt
00:00:21]} Qf6 {[%clk 00:11:03]} {[%emt 00:01:10]} 16. e5 {[%clk 00:13:32]}
{[%emt 00:00:09]} dxe5 {[%clk 00:10:36]} {[%emt 00:00:33]} 17. dxe5 {[%clk
00:13:31]} {[%emt 00:00:05]} Qf7 {[%clk 00:10:39]} {[%emt 00:00:02]} 18. Qb3
{[%clk 00:13:05]} {[%emt 00:00:30]} b5 {[%clk 00:08:40]} {[%emt 00:02:05]} 19.
Ncd2 {[%clk 00:12:36]} {[%emt 00:00:34]} Nb6 {[%clk 00:07:46]} {[%emt
00:00:59]} 20. Rac1 {[%clk 00:11:55]} {[%emt 00:00:46]} Ne7 {[%clk 00:07:02]}
{[%emt 00:00:50]} 21. Re2 {[%clk 00:10:26]} {[%emt 00:01:33]} Nbd5 {[%clk
00:06:41]} {[%emt 00:00:26]} 22. Ne4 {[%clk 00:10:04]} {[%emt 00:00:27]} Ng6
{[%clk 00:05:58]} {[%emt 00:00:48]} 23. Nc5 {[%clk 00:09:07]} {[%emt 00:01:01]}
Ngf4 {[%clk 00:05:59]} {[%emt 00:00:05]} 24. Rd2 {[%clk 00:08:49]} {[%emt
00:00:23]} Qg6 {[%clk 00:05:32]} {[%emt 00:00:33]} 25. g3 {[%clk 00:08:45]}
{[%emt 00:00:08]} Qg4 {[%clk 00:05:03]} {[%emt 00:00:34]} 26. Kh1 {[%clk
00:05:14]} {[%emt 00:03:35]} Nh3 {[%clk 00:03:53]} {[%emt 00:01:15]} 27. Nxe6
{[%clk 00:04:16]} {[%emt 00:01:02]} Qxe6 {[%clk 00:02:28]} {[%emt 00:01:31]} 28.
Rxd5 {[%clk 00:03:59]} {[%emt 00:00:21]} Nxf2+ {[%clk 00:02:26]} {[%emt
00:00:08]} 29. Kg1 {[%clk 00:03:41]} {[%emt 00:00:21]} c6 {[%clk 00:01:58]}
{[%emt 00:00:35]} 30. Rxc6 {[%clk 00:03:04]} {[%emt 00:00:41]} Rxf3 {[%clk
00:01:07]} {[%emt 00:00:56]} 31. Rd8+ {[%clk 00:02:48]} {[%emt 00:00:20]} 1-0